fUSD/lending_fUSD_20260531
["ID","MTS","AMOUNT","RATE_DAILY","PERIOD"]
[423487319,1780158642000,-150.0,0.00016287,2]
[423487322,1780158642000,-150.0,0.000163,2]
[423487321,1780158642000,-150.0,0.00016291,2]
[423487323,1780158642000,-150.0,0.00016314,2]
[423487325,1780158642000,-150.0,0.00016336,2]
[423487343,1780158642000,-150.0,0.00016473,2]
[423487328,1780158642000,-150.0,0.00016358,2]
[423487327,1780158642000,-150.0,0.00016358,2]
[423487329,1780158642000,-150.0,0.00016375,2]
[423487332,1780158642000,-150.0,0.00016403,2]
[423487338,1780158642000,-485.41,0.00016438,2]
[423487330,1780158642000,-150.0,0.0001638,2]
[423487326,1780158642000,-150.0,0.00016349,2]
[423487333,1780158642000,-150.0,0.00016411,2]
[423487335,1780158642000,-150.0,0.00016425,2]
[423487331,1780158642000,-150.0,0.0001638,2]
[423487334,1780158642000,-150.0,0.00016425,2]
[423487337,1780158642000,-1214.9,0.00016438,2]
[423487340,1780158642000,-150.0,0.0001645,2]
[423487339,1780158642000,-150.0,0.00016447,2]
[423487336,1780158642000,-150.0,0.00016425,2]
[423487376,1780158642000,-150.0,0.0001675,2]
[423487385,1780158642000,-150.0,0.00016826,2]
[423487369,1780158642000,-150.0,0.00016692,2]
[423487410,1780158642000,-150.0,0.00017004,2]
[423487407,1780158642000,-150.0,0.00016981,2]
[423487412,1780158642000,-150.0,0.00017026,2]
[423487413,1780158642000,-150.0,0.00017026,2]
[423487414,1780158642000,-1600.0,0.00017029,2]
[423487426,1780158642000,-150.0,0.00017126,2]
[423487416,1780158642000,-150.0,0.00017033,2]
[423487417,1780158642000,-1057.84,0.00017045,2]
[423487425,1780158642000,-1252.0,0.00017115,2]
[423487418,1780158642000,-150.0,0.00017048,2]
[423487424,1780158642000,-150.0,0.00017115,2]
[423487419,1780158642000,-150.0,0.00017051,2]
[423487427,1780158642000,-150.0,0.00017126,2]
[423487411,1780158642000,-150.0,0.00017026,2]
[423487422,1780158642000,-150.0,0.00017093,2]
[423487423,1780158642000,-150.0,0.00017095,2]
[423487420,1780158642000,-150.0,0.0001707,2]
[423487429,1780158642000,-150.0,0.00017126,2]
[423487440,1780158642000,-150.0,0.00017159,2]
[423487437,1780158642000,-215.58360558,0.00017143,2]
[423487442,1780158642000,-1667.22697728,0.000172,2]
[423487436,1780158642000,-150.0,0.00017137,2]
[423487431,1780158642000,-150.0,0.00017126,2]
[423487441,1780158642000,-150.0,0.00017182,2]
[423487439,1780158642000,-150.0,0.00017159,2]
[423487438,1780158642000,-150.0,0.00017157,2]
[423487434,1780158642000,-150.0,0.00017126,2]
[423487370,1780158642000,-150.0,0.00016692,2]
[423487421,1780158642000,-150.0,0.00017093,2]
[423487408,1780158642000,-1882.44914657,0.00016984,2]
[423487443,1780158642000,-150.0,0.00017201,2]
[423487406,1780158642000,-150.0,0.00016976,2]
[423487405,1780158642000,-150.0,0.00016971,2]
[423487377,1780158642000,-150.0,0.00016759,2]
[423487373,1780158642000,-150.0,0.00016722,2]
[423487379,1780158642000,-150.0,0.00016781,2]
[423487389,1780158642000,-150.0,0.00016846,2]
[423487378,1780158642000,-150.0,0.00016759,2]
[423487380,1780158642000,-150.0,0.00016784,2]
[423487383,1780158642000,-177.83877691,0.00016812,2]
[423487382,1780158642000,-177.83877691,0.00016812,2]
[423487386,1780158642000,-150.0,0.00016826,2]
[423487387,1780158642000,-150.0,0.00016826,2]
[423487384,1780158642000,-177.83877691,0.00016815,2]
[423487388,1780158642000,-150.0,0.00016826,2]
[423487390,1780158642000,-150.0,0.00016848,2]
[423487381,1780158642000,-150.0,0.00016803,2]
[423487396,1780158642000,-150.0,0.00016901,2]
[423487400,1780158642000,-150.0,0.00016926,2]
[423487404,1780158642000,-2318.0,0.0001696,2]
[423487402,1780158642000,-150.0,0.00016959,2]
[423487409,1780158642000,-1667.22697728,0.00017,2]
[423487399,1780158642000,-150.0,0.00016915,2]
[423487394,1780158642000,-9076.23266028,0.000169,2]
[423487403,1780158642000,-150.0,0.00016959,2]
[423487395,1780158642000,-19955.08645638,0.000169,2]
[423487401,1780158642000,-150.0,0.00016937,2]
[423487397,1780158642000,-150.0,0.00016901,2]
[423487392,1780158642000,-150.0,0.00016892,2]
[423487391,1780158642000,-150.0,0.0001687,2]
[423487393,1780158642000,-150.0,0.00016892,2]
[423487398,1780158642000,-150.0,0.00016908,2]
[423487470,1780158643000,-1667.22697728,0.000174,2]
[423487476,1780158643000,-150.0,0.00017426,2]
[423487477,1780158643000,-150.0,0.00017449,2]
[423487479,1780158643000,-150.0,0.00017471,2]
[423487478,1780158643000,-150.0,0.00017468,2]
[423487475,1780158643000,-150.0,0.00017426,2]
[423487473,1780158643000,-150.0,0.00017426,2]
[423487474,1780158643000,-150.0,0.00017426,2]
[423487471,1780158643000,-150.0,0.00017404,2]
[423487472,1780158643000,-150.0,0.00017406,2]
[423487480,1780158643000,-150.0,0.00017493,2]
[423487486,1780158643000,-401.38592674,0.00017518,2]
[423487485,1780158643000,-150.0,0.00017516,2]
[423487481,1780158643000,-150.0,0.00017493,2]
[423487483,1780158643000,-163.75,0.000175,2]
[423487484,1780158643000,-150.0,0.00017502,2]
[423487498,1780158643000,-150.0,0.00017627,2]
[423487488,1780158643000,-150.0,0.0001753,2]
[423487487,1780158643000,-150.0,0.00017527,2]
[423487489,1780158643000,-150.0,0.00017538,2]
[423487461,1780158643000,-150.0,0.00017326,2]
[423487490,1780158643000,-150.0,0.0001756,2]
[423487482,1780158643000,-161.0,0.00017496,2]
[423487469,1780158643000,-150.0,0.00017382,2]
[423487451,1780158643000,-500.0,0.00017268,2]
[423487468,1780158643000,-150.0,0.0001736,2]
[423487491,1780158643000,-150.0,0.0001756,2]
[423487444,1780158643000,-150.0,0.00017204,2]
[423487445,1780158643000,-150.0,0.00017219,2]
[423487447,1780158643000,-150.0,0.00017226,2]
[423487455,1780158643000,-150.0,0.00017271,2]
[423487450,1780158643000,-500.0,0.00017268,2]
[423487446,1780158643000,-150.0,0.00017226,2]
[423487448,1780158643000,-150.0,0.00017226,2]
[423487449,1780158643000,-150.0,0.00017248,2]
[423487454,1780158643000,-500.0,0.00017268,2]
[423487467,1780158643000,-150.0,0.0001736,2]
[423487453,1780158643000,-500.0,0.00017268,2]
[423487456,1780158643000,-150.0,0.00017276,2]
[423487457,1780158643000,-150.0,0.00017281,2]
[423487466,1780158643000,-150.0,0.00017351,2]
[423487458,1780158643000,-150.0,0.00017293,2]
[423487460,1780158643000,-150.0,0.00017315,2]
[423487465,1780158643000,-150.0,0.00017351,2]
[423487459,1780158643000,-150.0,0.00017293,2]
[423487462,1780158643000,-2000.0,0.00017327,2]
[423487463,1780158643000,-150.0,0.00017337,2]
[423487464,1780158643000,-150.0,0.00017344,2]
[423487452,1780158643000,-3213.79,0.00017268,2]
[423487495,1780158643000,-150.0,0.00017592,2]
[423487492,1780158643000,-150.0,0.00017577,2]
[423487534,1780158643000,-150.0,0.00017894,2]
[423487519,1780158643000,-150.0,0.00017779,2]
[423487520,1780158643000,-150.0,0.00017783,2]
[423487527,1780158643000,-150.0,0.00017827,2]
[423487538,1780158643000,-150.0,0.00017916,2]
[423487524,1780158643000,-150.0,0.00017827,2]
[423487529,1780158643000,-150.0,0.00017827,2]
[423487531,1780158643000,-150.0,0.00017849,2]
[423487537,1780158643000,-150.0,0.00017903,2]
[423487533,1780158643000,-150.0,0.00017877,2]
[423487539,1780158643000,-150.0,0.00017927,2]
[423487521,1780158643000,-150.0,0.00017802,2]
[423487536,1780158643000,-150.0,0.00017894,2]
[423487540,1780158643000,-150.0,0.00017938,2]
[423487542,1780158643000,-150.0,0.00017961,2]
[423487546,1780158643000,-236.04068927,0.00018,2]
[423487547,1780158643000,-444.21592884,0.00018,2]
[423487545,1780158643000,-150.0,0.00017983,2]
[423487543,1780158643000,-150.0,0.00017961,2]
[423487541,1780158643000,-150.0,0.00017952,2]
[423487544,1780158643000,-150.0,0.00017965,2]
[423487493,1780158643000,-150.0,0.00017577,2]
[423487548,1780158643000,-221.5935511,0.00018,2]
[423487532,1780158643000,-150.0,0.00017872,2]
[423487518,1780158643000,-150.0,0.0001776,2]
[423487530,1780158643000,-150.0,0.00017841,2]
[423487516,1780158643000,-150.0,0.00017738,2]
[423487494,1780158643000,-150.0,0.00017582,2]
[423487496,1780158643000,-1667.22697728,0.000176,2]
[423487497,1780158643000,-150.0,0.00017605,2]
[423487506,1780158643000,-150.0,0.00017694,2]
[423487501,1780158643000,-150.0,0.00017649,2]
[423487503,1780158643000,-150.0,0.00017654,2]
[423487517,1780158643000,-150.0,0.0001776,2]
[423487502,1780158643000,-150.0,0.00017652,2]
[423487500,1780158643000,-150.0,0.00017627,2]
[423487499,1780158643000,-150.0,0.00017627,2]
[423487504,1780158643000,-150.0,0.00017671,2]
[423487510,1780158643000,-150.0,0.00017727,2]
[423487511,1780158643000,-150.0,0.00017727,2]
[423487505,1780158643000,-150.0,0.00017694,2]
[423487515,1780158643000,-170.11923,0.00017728,2]
[423487513,1780158643000,-25856.65,0.00017728,2]
[423487523,1780158643000,-150.0,0.00017805,2]
[423487514,1780158643000,-1882.75,0.00017728,2]
[423487512,1780158643000,-5850.28,0.00017728,2]
[423487509,1780158643000,-150.0,0.00017717,2]
[423487507,1780158643000,-1667.22697728,0.000177,2]
[423487508,1780158643000,-150.0,0.00017716,2]
[423487522,1780158643000,-150.0,0.00017802,2]
[423487593,1780158644000,-151.0,0.0001902,2]
[423487590,1780158644000,-444.21592884,0.000187,2]
[423487601,1780158644000,-2080.17592889,0.0001902,2]
[423487586,1780158644000,-8248.42,0.00018533,2]
[423487582,1780158644000,-9999.99,0.00018533,2]
[423487580,1780158644000,-150.99,0.00018533,2]
[423487584,1780158644000,-9999.99,0.00018533,2]
[423487577,1780158644000,-24999.99,0.00018533,2]
[423487583,1780158644000,-4999.99,0.00018533,2]
[423487585,1780158644000,-1559.34,0.00018533,2]
[423487591,1780158644000,-2000.0,0.00018902,2]
[423487581,1780158644000,-1616.6,0.00018533,2]
[423487589,1780158644000,-1041.0,0.00018648,2]
[423487605,1780158644000,-151.0,0.0001902,2]
[423487595,1780158644000,-151.0,0.0001902,2]
[423487594,1780158644000,-200.0,0.0001902,2]
[423487599,1780158644000,-151.0,0.0001902,2]
[423487598,1780158644000,-151.0,0.0001902,2]
[423487596,1780158644000,-151.0,0.0001902,2]
[423487592,1780158644000,-1590.0,0.0001892,2]
[423487597,1780158644000,-151.0,0.0001902,2]
[423487602,1780158644000,-151.0,0.0001902,2]
[423487614,1780158644000,-151.0,0.0001902,2]
[423487603,1780158644000,-151.0,0.0001902,2]
[423487613,1780158644000,-151.0,0.0001902,2]
[423487607,1780158644000,-151.0,0.0001902,2]
[423487588,1780158644000,-1593.0,0.000186,2]
[423487600,1780158644000,-151.0,0.0001902,2]
[423487578,1780158644000,-9999.99,0.00018533,2]
[423487558,1780158644000,-273.94884325,0.00018027,2]
[423487579,1780158644000,-999.99,0.00018533,2]
[423487549,1780158644000,-102848.72590634,0.00018,2]
[423487550,1780158644000,-150.0,0.00018005,2]
[423487551,1780158644000,-229.82022437,0.00018027,2]
[423487553,1780158644000,-173.22791968,0.00018027,2]
[423487554,1780158644000,-150.0,0.00018027,2]
[423487559,1780158644000,-1272.0,0.00018042,2]
[423487556,1780158644000,-246.45782846,0.00018027,2]
[423487557,1780158644000,-236.2079933,0.00018027,2]
[423487552,1780158644000,-252.78034352,0.00018027,2]
[423487555,1780158644000,-150.0,0.00018027,2]
[423487560,1780158644000,-525.0,0.00018042,2]
[423487562,1780158644000,-6066.0,0.00018042,2]
[423487561,1780158644000,-1226.0,0.00018042,2]
[423487568,1780158644000,-163.0,0.00018255,2]
[423487566,1780158644000,-444.21592884,0.000182,2]
[423487565,1780158644000,-19955.08645638,0.00018167,2]
[423487573,1780158644000,-444.21592884,0.000185,2]
[423487570,1780158644000,-16267.29,0.00018356,2]
[423487571,1780158644000,-444.21592884,0.000184,2]
[423487563,1780158644000,-928.0,0.00018042,2]
[423487564,1780158644000,-9076.23266028,0.00018167,2]
[423487567,1780158644000,-221.5935511,0.000182,2]
[423487572,1780158644000,-1214.9,0.0001841,2]
[423487575,1780158644000,-2613.01,0.00018533,2]
[423487569,1780158644000,-1613.0,0.00018275,2]
[423487574,1780158644000,-3156.55,0.00018533,2]
[423487587,1780158644000,-1600.0,0.00018577,2]
[423487576,1780158644000,-9999.99,0.00018533,2]
[423487610,1780158644000,-520.61422203,0.0001902,2]
[423487604,1780158644000,-151.0,0.0001902,2]
[423487611,1780158644000,-151.0,0.0001902,2]
[423487641,1780158644000,-650.22640497,0.0002,2]
[423487643,1780158644000,-651.0,0.0002,2]
[423487644,1780158644000,-657.0,0.0002,2]
[423487651,1780158644000,-152.0,0.0002,2]
[423487650,1780158644000,-200.0,0.0002,10]
[423487645,1780158644000,-7562.92,0.0002,2]
[423487646,1780158644000,-669.0,0.0002,2]
[423487649,1780158644000,-550.0,0.0002,2]
[423487647,1780158644000,-8423.0,0.0002,2]
[423487648,1780158644000,-278.0,0.0002,2]
[423487662,1780158644000,-200.0,0.00020116,2]
[423487657,1780158644000,-176.22248209,0.0002,2]
[423487660,1780158644000,-163.75,0.000201,2]
[423487658,1780158644000,-176.22248209,0.0002,2]
[423487659,1780158644000,-2258.0,0.00020074,2]
[423487655,1780158644000,-230.0,0.0002,2]
[423487653,1780158644000,-868.0,0.0002,2]
[423487663,1780158644000,-2236.95670847,0.00020116,2]
[423487661,1780158644000,-300.0,0.000201,10]
[423487654,1780158644000,-304.0,0.0002,2]
[423487656,1780158644000,-949.0,0.0002,2]
[423487665,1780158644000,-650.22640497,0.000202,2]
[423487666,1780158644000,-2314.0,0.00020205,2]
[423487667,1780158644000,-1590.0,0.0002022,2]
[423487669,1780158644000,-162.32,0.000203,7]
[423487664,1780158644000,-2318.0,0.00020166,2]
[423487670,1780158644000,-1214.9,0.00020381,2]
[423487652,1780158644000,-567.0,0.0002,2]
[423487642,1780158644000,-168.0,0.0002,2]
[423487668,1780158644000,-934.0,0.00020273,2]
[423487638,1780158644000,-390.96,0.000196,2]
[423487637,1780158644000,-4336.65,0.000196,2]
[423487608,1780158644000,-500.0,0.0001902,2]
[423487612,1780158644000,-151.0,0.0001902,2]
[423487606,1780158644000,-164.03726558,0.0001902,2]
[423487615,1780158644000,-151.0,0.0001902,2]
[423487619,1780158644000,-3000.0,0.00019178,2]
[423487622,1780158644000,-238.60871557,0.00019178,2]
[423487616,1780158644000,-151.0,0.0001902,2]
[423487621,1780158644000,-230.09519341,0.00019178,2]
[423487617,1780158644000,-151.0,0.0001902,2]
[423487626,1780158644000,-275.93152964,0.00019178,2]
[423487620,1780158644000,-221.88543241,0.00019178,2]
[423487627,1780158644000,-286.14099624,0.00019178,2]
[423487618,1780158644000,-151.0,0.0001902,2]
[423487609,1780158644000,-151.0,0.0001902,2]
[423487625,1780158644000,-266.08633524,0.00019178,2]
[423487624,1780158644000,-256.59241585,0.00019178,2]
[423487636,1780158644000,-11088.19,0.000196,2]
[423487631,1780158644000,-9076.23266028,0.00019435,2]
[423487628,1780158644000,-296.7282131,0.00019178,2]
[423487634,1780158644000,-200.0,0.00019568,2]
[423487639,1780158644000,-166.92,0.00019807,2]
[423487632,1780158644000,-19955.08645638,0.00019435,2]
[423487630,1780158644000,-319.09232179,0.00019178,2]
[423487635,1780158644000,-2157.14243826,0.00019568,2]
[423487640,1780158644000,-2000.0,0.00019986,7]
[423487629,1780158644000,-307.70715698,0.00019178,2]
[423487623,1780158644000,-247.43723804,0.00019178,2]
[423487633,1780158644000,-1002.0,0.00019452,2]
[423487708,1780158645000,-525.0,0.00021042,2]
[423487712,1780158645000,-179.61689627,0.00021042,3]
[423487707,1780158645000,-906.077,0.00021042,2]
[423487705,1780158645000,-230.0,0.00021,2]
[423487703,1780158645000,-868.0,0.00021,2]
[423487711,1780158645000,-928.0,0.00021042,2]
[423487704,1780158645000,-304.0,0.00021,2]
[423487701,1780158645000,-152.0,0.00021,2]
[423487709,1780158645000,-1226.0,0.00021042,2]
[423487713,1780158645000,-200.0,0.00021212,2]
[423487706,1780158645000,-949.0,0.00021,2]
[423487722,1780158645000,-279.9045709,0.00021221,2]
[423487717,1780158645000,-151.0,0.00021221,2]
[423487720,1780158645000,-743.50770149,0.00021221,2]
[423487724,1780158645000,-1428.38747117,0.00021221,2]
[423487715,1780158645000,-151.0,0.00021221,2]
[423487719,1780158645000,-199.47279156,0.00021221,2]
[423487710,1780158645000,-6066.0,0.00021042,2]
[423487714,1780158645000,-2405.55389863,0.00021212,2]
[423487716,1780158645000,-174.61919141,0.00021221,2]
[423487723,1780158645000,-578.20924308,0.00021221,2]
[423487718,1780158645000,-156.587,0.00021221,2]
[423487727,1780158645000,-155.93867519,0.00021221,2]
[423487729,1780158645000,-151.0,0.00021221,2]
[423487725,1780158645000,-203.18935297,0.00021221,2]
[423487728,1780158645000,-693.39197629,0.00021221,2]
[423487721,1780158645000,-9552.16786547,0.00021221,2]
[423487702,1780158645000,-567.0,0.00021,2]
[423487699,1780158645000,-278.0,0.00021,2]
[423487695,1780158645000,-168.0,0.00021,2]
[423487733,1780158645000,-745.65223615,0.00021331,2]
[423487674,1780158645000,-177.83877691,0.00020525,2]
[423487671,1780158645000,-650.22640497,0.000204,2]
[423487673,1780158645000,-177.83877691,0.00020525,2]
[423487672,1780158645000,-175.79,0.00020451,2]
[423487676,1780158645000,-8984.28,0.00020548,2]
[423487675,1780158645000,-177.83877691,0.0002053,2]
[423487686,1780158645000,-209.23379254,0.0002063,3]
[423487678,1780158645000,-150.0,0.0002058,2]
[423487677,1780158645000,-150.0,0.0002058,2]
[423487680,1780158645000,-150.0,0.0002058,2]
[423487679,1780158645000,-150.0,0.0002058,2]
[423487685,1780158645000,-163.0,0.00020629,2]
[423487681,1780158645000,-150.0,0.0002058,2]
[423487683,1780158645000,-150.0,0.0002058,2]
[423487682,1780158645000,-150.0,0.0002058,2]
[423487687,1780158645000,-200.0,0.00020664,2]
[423487698,1780158645000,-6680.71102074,0.00021,2]
[423487688,1780158645000,-2319.72410669,0.00020664,2]
[423487697,1780158645000,-657.0,0.00021,2]
[423487692,1780158645000,-19955.08645638,0.00020702,2]
[423487694,1780158645000,-10000.0,0.00020803,2]
[423487690,1780158645000,-163.0,0.00020697,2]
[423487696,1780158645000,-651.0,0.00021,2]
[423487691,1780158645000,-9076.23266028,0.00020702,2]
[423487700,1780158645000,-550.0,0.00021,2]
[423487693,1780158645000,-650.22640497,0.000208,2]
[423487689,1780158645000,-1882.44914657,0.00020668,2]
[423487684,1780158645000,-650.22640497,0.000206,2]
[423487732,1780158645000,-151.0,0.00021276,2]
[423487734,1780158645000,-151.0,0.00021331,2]
[423487764,1780158645000,-800.0,0.00021918,2]
[423487762,1780158645000,-5000.0,0.00021918,2]
[423487767,1780158645000,-800.0,0.00021918,2]
[423487768,1780158645000,-800.0,0.00021918,2]
[423487769,1780158645000,-800.0,0.00021918,2]
[423487770,1780158645000,-800.0,0.00021918,2]
[423487765,1780158645000,-800.0,0.00021918,2]
[423487778,1780158645000,-161.0,0.00021934,2]
[423487781,1780158645000,-250.0,0.0002198,2]
[423487777,1780158645000,-200.0,0.00021918,2]
[423487782,1780158645000,-7465.12074675,0.00022,10]
[423487772,1780158645000,-200.0,0.00021918,2]
[423487760,1780158645000,-300.0,0.00021884,2]
[423487783,1780158645000,-168.0,0.00022,2]
[423487773,1780158645000,-200.0,0.00021918,2]
[423487779,1780158645000,-9076.23266028,0.00021969,2]
[423487774,1780158645000,-200.0,0.00021918,2]
[423487775,1780158645000,-200.0,0.00021918,2]
[423487786,1780158645000,-190.29,0.00022,2]
[423487784,1780158645000,-651.0,0.00022,2]
[423487787,1780158645000,-278.0,0.00022,2]
[423487785,1780158645000,-657.0,0.00022,2]
[423487790,1780158645000,-567.0,0.00022,2]
[423487788,1780158645000,-550.0,0.00022,2]
[423487789,1780158645000,-152.0,0.00022,2]
[423487731,1780158645000,-719.04747942,0.00021276,2]
[423487780,1780158645000,-19955.08645638,0.00021969,2]
[423487766,1780158645000,-800.0,0.00021918,2]
[423487776,1780158645000,-200.0,0.00021918,2]
[423487763,1780158645000,-800.0,0.00021918,2]
[423487761,1780158645000,-3082.09,0.00021918,2]
[423487726,1780158645000,-152.0,0.00021221,2]
[423487735,1780158645000,-773.24136889,0.00021386,2]
[423487737,1780158645000,-801.85129954,0.00021441,2]
[423487745,1780158645000,-151.0,0.00021661,2]
[423487747,1780158645000,-158.00615946,0.00021716,2]
[423487746,1780158645000,-300.0,0.00021698,2]
[423487736,1780158645000,-151.0,0.00021386,2]
[423487739,1780158645000,-476.76,0.00021444,2]
[423487740,1780158645000,-310.7045221,0.00021496,2]
[423487738,1780158645000,-151.0,0.00021441,2]
[423487742,1780158645000,-151.0,0.00021496,2]
[423487744,1780158645000,-151.0,0.00021606,2]
[423487743,1780158645000,-151.0,0.00021551,2]
[423487730,1780158645000,-1590.0,0.00021229,2]
[423487771,1780158645000,-200.0,0.00021918,2]
[423487750,1780158645000,-2494.55939288,0.0002176,2]
[423487758,1780158645000,-1590.0,0.00021835,2]
[423487755,1780158645000,-1481.2378076,0.00021769,2]
[423487752,1780158645000,-771.01748644,0.00021769,2]
[423487749,1780158645000,-200.0,0.0002176,2]
[423487753,1780158645000,-9905.59807649,0.00021769,2]
[423487759,1780158645000,-401.38592674,0.00021837,2]
[423487748,1780158645000,-1590.0,0.00021726,2]
[423487754,1780158645000,-290.26104002,0.00021769,2]
[423487751,1780158645000,-181.08010149,0.00021769,2]
[423487757,1780158645000,-476.76,0.00021801,2]
[423487756,1780158645000,-163.75,0.000218,2]
[423487827,1780158646000,-500.0,0.00022982,2]
[423487825,1780158646000,-500.0,0.00022982,2]
[423487830,1780158646000,-6104.33,0.00022983,2]
[423487829,1780158646000,-500.0,0.00022982,2]
[423487828,1780158646000,-500.0,0.00022982,2]
[423487822,1780158646000,-500.0,0.00022982,2]
[423487832,1780158646000,-498.4,0.00022999,2]
[423487821,1780158646000,-500.0,0.00022982,2]
[423487824,1780158646000,-581.97252477,0.00022982,2]
[423487823,1780158646000,-500.0,0.00022982,2]
[423487831,1780158646000,-500.0,0.00022999,2]
[423487826,1780158646000,-500.0,0.00022982,2]
[423487834,1780158646000,-395.14050061,0.00022999,2]
[423487839,1780158646000,-500.0,0.00023,2]
[423487835,1780158646000,-505.24076892,0.00022999,2]
[423487845,1780158646000,-500.0,0.00023,2]
[423487838,1780158646000,-657.0,0.00023,2]
[423487833,1780158646000,-3213.79,0.00022999,2]
[423487837,1780158646000,-651.0,0.00023,2]
[423487836,1780158646000,-168.0,0.00023,2]
[423487842,1780158646000,-500.0,0.00023,2]
[423487843,1780158646000,-500.0,0.00023,2]
[423487840,1780158646000,-500.0,0.00023,2]
[423487846,1780158646000,-500.0,0.00023,2]
[423487849,1780158646000,-500.0,0.00023,2]
[423487854,1780158646000,-500.0,0.00023,2]
[423487841,1780158646000,-500.0,0.00023,2]
[423487820,1780158646000,-10427.0,0.000229,2]
[423487850,1780158646000,-500.0,0.00023,2]
[423487817,1780158646000,-10652.17309792,0.00022865,2]
[423487795,1780158646000,-3162.0,0.00022049,2]
[423487793,1780158646000,-230.0,0.00022,2]
[423487791,1780158646000,-868.0,0.00022,2]
[423487792,1780158646000,-304.0,0.00022,2]
[423487794,1780158646000,-949.0,0.00022,2]
[423487797,1780158646000,-476.76,0.00022159,2]
[423487796,1780158646000,-150.0,0.00022147,2]
[423487801,1780158646000,-187.78006524,0.00022317,2]
[423487802,1780158646000,-799.54513344,0.00022317,2]
[423487804,1780158646000,-301.0006985,0.00022317,2]
[423487803,1780158646000,-10272.10520532,0.00022317,2]
[423487798,1780158646000,-2318.0,0.00022251,2]
[423487805,1780158646000,-1536.04360648,0.00022317,2]
[423487800,1780158646000,-2586.85809042,0.00022308,2]
[423487799,1780158646000,-200.0,0.00022308,2]
[423487806,1780158646000,-200.0,0.0002232,2]
[423487818,1780158646000,-312.13772435,0.00022865,2]
[423487808,1780158646000,-1590.0,0.00022366,2]
[423487819,1780158646000,-1592.87721992,0.00022865,2]
[423487813,1780158646000,-200.0,0.00022856,2]
[423487807,1780158646000,-1214.9,0.00022353,2]
[423487810,1780158646000,-1131.71,0.00022466,2]
[423487811,1780158646000,-476.78,0.00022516,2]
[423487816,1780158646000,-829.12830338,0.00022865,2]
[423487812,1780158646000,-156.587,0.0002259,2]
[423487809,1780158646000,-1590.0,0.0002245,2]
[423487814,1780158646000,-2682.57183977,0.00022856,2]
[423487815,1780158646000,-194.72792766,0.00022865,2]
[423487851,1780158646000,-500.0,0.00023,2]
[423487844,1780158646000,-500.0,0.00023,2]
[423487853,1780158646000,-500.0,0.00023,2]
[423487885,1780158646000,-500.0,0.00023,2]
[423487886,1780158646000,-500.0,0.00023,2]
[423487884,1780158646000,-500.0,0.00023,2]
[423487888,1780158646000,-500.0,0.00023,2]
[423487887,1780158646000,-500.0,0.00023,2]
[423487891,1780158646000,-500.0,0.00023,2]
[423487894,1780158646000,-500.0,0.00023,2]
[423487889,1780158646000,-500.0,0.00023,2]
[423487890,1780158646000,-500.0,0.00023,2]
[423487893,1780158646000,-500.0,0.00023,2]
[423487892,1780158646000,-500.0,0.00023,2]